Cogmind - Beta 14 @@@ ROGUE MODE // 2024.10.11 @ 00:25:00 Player: MarKhan Result: Destroyed by G-34 Mercenary with Small Laser Performance ------------- Evolutions (0) 0 Regions Visited (1) 200 Robots Destroyed (28) 140 Value Destroyed (633) 633 Prototype IDs (3) 60 Alien Tech Used (0) 0 Bonus (0) 0 TOTAL SCORE: 1033 Bonus ------- None Cogmind --------- Core Integrity 0/250 Matter 229/300 Energy 160/160 System Corruption 3% Temperature Warm (156) Movement Rolling (100) Location -10/Materials Parts ------- > --- POWER (1) -------- Light Nuclear Core > --- PROPULSION (2) --- Compact Wheel Compact Wheel > --- UTILITY (2) ------ Improved Heat Sink Large Storage Unit > --- WEAPON (2) ------- Small Laser Light Cannon > --- INVENTORY (15) --- Ion Engine Ion Engine Compact Wheel Compact Wheel High-capacity Battery (250) Large Matter Pod (150) Large Matter Pod (150) Seismic Detector Weapon Shielding Tractor Beam Medium Laser Assault Rifle Grenade Launcher Mining Claw Mining Claw Peak State ------------ > --- POWER ------------ Light Nuclear Core > --- PROPULSION ------- Wheel Compact Wheel > --- UTILITY ---------- Improved Heat Sink Large Storage Unit > --- WEAPON ----------- Medium Laser Small Laser > --- INVENTORY -------- Ion Engine Ion Engine Light Ion Engine Light Treads Wheel Wheel High-capacity Battery Medium Matter Pod Medium Matter Pod Seismic Detector Weapon Shielding Small Laser Light Assault Rifle Mining Claw Mining Claw [Rating: 12] Favorites ----------- Power Light Nuclear Core Engine Ion Engine Power Core Light Nuclear Core Propulsion Compact Wheel Treads Light Treads Wheel Compact Wheel Utility Large Storage Unit Device Improved Heat Sink Storage Large Storage Unit Protection Weapon Shielding Weapon Medium Laser Energy Gun Medium Laser Ballistic Gun Light Assault Rifle Ballistic Cannon Light Cannon Launcher Grenade Launcher Special Weapon Mining Laser Slashing Weapon Mining Claw Build | -11 -10 ------- Run | Yrd Mat Slots Evolved . | . . Power . | . . Propulsion . | . . Utility . | . . Weapon . | . . Parts Attached 37 | 7 30 Power 5 | 1 4 Engine 4 | 1 3 Core 1 | . 1 Reactor . | . . Propulsion 12 | 2 10 Treads 3 | . 3 Leg . | . . Wheel 9 | 2 7 Hover . | . . Flight . | . . Utility 8 | 2 6 Device 3 | 1 2 Storage 3 | 1 2 Processor . | . . Hackware . | . . Protection 2 | . 2 Artifact . | . . Weapon 12 | 2 10 Energy Gun 5 | 1 4 Energy Cannon . | . . Ballistic Gun 1 | 1 . Ballistic Cannon 2 | . 2 Launcher 1 | . 1 Special Weapon 1 | . 1 Impact Weapon . | . . Slashing Weapon 2 | . 2 Piercing Weapon . | . . Special Melee Weapon . | . . Unidentified Prototypes . | . . Parts Lost 2 | . 2 Power 1 | . 1 Propulsion 1 | . 1 Utility . | . . Weapon . | . . Highest Loss Streak 1 | . 1 To Critical Strikes . | . . Average Slot Usage (%) 99 | . 99 Engine 6 | . 6 Core 7 | . 7 Treads 1 | . 1 Wheel 25 | . 25 Device 11 | . 11 Storage 14 | . 14 Protection 2 | . 2 Energy Gun 21 | . 21 Ballistic Gun 2 | . 2 Slashing Weapon 2 | . 2 Peak Build Rating 12 | 7 12 Average Rating 9 | 5 10 On Entrance 3 | . 7 Naked Turns . | . . Heaviest Build 31 | 14 31 Greatest Support 40 | 26 40 Greatest Overweight (x) 1 | . 1 Average Overweight (x) . | . . Largest Inventory Capacity 15 | 8 15 Average Capacity 13 | 7 14 Most Carried 15 | 6 15 Average Carried 12 | 3 13 Final Capacity 15 | 8 15 Final Carried 15 | 6 15 Class Distribution -------------------- 98% | Mutant Dominant Class ---------------- Mutant | -10/Materials Resources | -11 -10 ----------- Run | Yrd Mat Matter Collected 1081 | 279 802 Remotely . | . . Salvage Created 868 | 115 753 Parts 69 | 4 65 Haulers Intercepted 2 | . 2 Recyclers Shooed 1 | . 1 Parts Field Recycled . | . . Retrieved Matter . | . . Parts Self-Destructed . | . . Prevented . | . . Kills | -11 -10 ------- Run | Yrd Mat Combat Hostiles Destroyed 13 | . 13 Melee 3 | . 3 Guns 7 | . 7 Cannons 3 | . 3 Classes Destroyed 8 | 2 6 Worker 3 | . 3 Builder 5 | . 5 Tunneler 1 | 1 . Hauler 2 | . 2 Recycler 1 | 1 . Watcher 3 | . 3 Swarmer 2 | . 2 Grunt 11 | . 11 Best Kill Streak 3 | 2 3 Combat Bots Only 3 | . 3 Max Kills in Single Turn 1 | 1 1 Gunslinging . | . . Exploded . | . . Melee 1 | . 1 Uniques/NPCs Destroyed . | . . Combat | -11 -10 -------- Run | Yrd Mat Hostile Shots Fired 99 | . 99 Missed 15 | . 15 Damage Taken 1008 | . 1008 Core 257 | . 257 Absorbed by Shields . | . . Redirected to Shielding 22 | . 22 Core Remaining (%) 100 | 100 . Volleys Fired 349 | 9 340 Largest 2 | 2 2 Hottest 100 | 70 100 Shots Fired 619 | 18 601 Gun 602 | 18 584 Cannon 10 | . 10 Launcher 2 | . 2 Special 5 | . 5 Kinetic 50 | 9 41 Thermal 567 | 9 558 Explosive 2 | . 2 Electromagnetic . | . . Robot Hit Streak 15 | 5 15 Robot Miss Streak 8 | 1 8 Penetration Max . | . . Secondary Targets 1 | . 1 Max Gunslinging Chain 1 | . 1 Shots Hit Robots 107 | 13 94 Core Hits 43 | 3 40 Critical Kills . | . . Critical Parts Destroyed . | . . Critical Strikes 4 | 1 3 Burn 4 | 1 3 Melee Attacks 19 | . 19 Impact . | . . Slashing 19 | . 19 Piercing . | . . Sneak Attacks 1 | . 1 Combat Hostiles 1 | . 1 Follow-up Attacks 2 | . 2 Damage Inflicted 1854 | 161 1693 Guns 1032 | 161 871 Cannons 108 | . 108 Explosions 344 | . 344 Melee 354 | . 354 Ramming 16 | . 16 Kinetic 310 | 60 250 Thermal 830 | 101 729 Explosive 261 | . 261 Electromagnetic 83 | . 83 Impact . | . . Slashing 354 | . 354 Piercing . | . . Highest Corruption 3 | . 3 Average Corruption 1 | . 1 Corruption Purged . | . . Corruption Blocked . | . . Effects 16 | . 16 Message Errors 3 | . 3 Matter Fused 7 | . 7 Heat Flow Errors 2 | . 2 Energy Discharges 1 | . 1 Data Loss (minor) 2 | . 2 Weapon Failures 1 | . 1 Overload Shots . | . . Overflow Damage . | . . Projectiles . | . . Explosions . | . . Melee . | . . Knockbacks . | . . Impact . | . . Kinetic . | . . Secondary . | . . Self-Inflicted Damage 32 | . 32 Shots 1 | . 1 Rammed 1 | . 1 Targets Rammed 1 | . 1 Kicked . | . . Crushed . | . . Highest Temperature 342 | 110 342 Average Temperature 103 | 45 108 Received Heat Transfer 558 | . 558 Effects 3 | . 3 Shutdowns 1 | . 1 Energy Bleed 1 | . 1 Interference 1 | . 1 Siege Activations . | . . Robots Corrupted 1 | . 1 Combat Hostiles . | . . Parts Fried 2 | . 2 Impact Corruptions . | . . Robots Melted . | . . Combat Hostiles . | . . Parts Melted 4 | 1 3 Heat Transferred 2597 | 370 2227 Parts Sabotaged . | . . Parts Stolen . | . . Parts Stripped . | . . Power Chain Reactions 1 | . 1 Alert | -11 -10 ------- Run | Yrd Mat Peak Influence 387 | 10 387 Initial 6 | . 6 Average 134 | 2 140 Maximum Alert Level 1 | . 1 Low Security (%) 78 | 100 76 Level 1 21 | . 23 Level 2 . | . . Level 3 . | . . Level 4 . | . . Level 5 . | . . High Security . | . . Max Security . | . . Squads Dispatched 5 | . 5 Investigation 4 | . 4 Extermination . | . . Reinforcement 1 | . 1 Assault . | . . Garrison . | . . Intercept . | . . Searches Triggered . | . . Construction Impeded . | . . Haulers Reinforced . | . . Active Scanning Responses . | . . Cargo Convoy Interrupts . | . . Stealth | -11 -10 --------- Run | Yrd Mat Distress Signals . | . . Communications Jammed . | . . Distress Signals . | . . Times Spotted 23 | . 23 Peak Tracking Total 3 | . 3 Tactical Retreats . | . . Traps | -11 -10 ------- Run | Yrd Mat Traps Triggered 1 | . 1 Indirectly . | . . Trap Hack Attempts . | . . Triggered . | . . Disarmed . | . . Reprogrammed . | . . Reused . | . . Traps Extracted . | . . Installed . | . . Triggered . | . . Machines | -11 -10 ---------- Run | Yrd Mat Machines Disabled 12 | . 12 Max in Single Turn 1 | . 1 Machines Repaired . | . . Machines Dismantled . | . . Machines Sabotaged . | . . Overloaded Fab Kills . | . . Hacking | -11 -10 --------- Run | Yrd Mat Machines Accessed 7 | . 7 Terminals 5 | . 5 Fabricators . | . . Repair Stations . | . . Recycling Units 2 | . 2 Scanalyzers . | . . Garrison Access . | . . Total Hacks 28 | . 28 Successful 18 | . 18 Failed 10 | . 10 Catastrophic . | . . Database Lockouts . | . . Manual 20 | . 20 Terminals 21 | . 21 Fabricators . | . . Repair Stations . | . . Recycling Units 7 | . 7 Scanalyzers . | . . Garrison Access . | . . Terminal Hacks 6 | . 6 Prototype ID Bank 2 | . 2 Terminal Index 1 | . 1 Alert Level 1 | . 1 Hauler Manifests 1 | . 1 Zone Layout 1 | . 1 Fabricator Hacks . | . . Repair Station Hacks . | . . Recycling Unit Hacks 2 | . 2 Report Inventory 1 | . 1 Retrieve Matter 1 | . 1 Scanalyzer . | . . Garrison Access Hacks . | . . Unauthorized Hacks 10 | . 10 Terminals 7 | . 7 Track 1 | . 1 Assimilate 2 | . 2 Botnet 3 | . 3 Operators 1 | . 1 Fabricators . | . . Repair Stations . | . . Recycling Units 3 | . 3 Recyclers 1 | . 1 Tunnel 2 | . 2 Scanalyzers . | . . Garrison Access . | . . Data Cores Recovered . | . . Used . | . . Hacking Detections 4 | . 4 Full Trace Events 4 | . 4 Feedback Events 2 | . 2 Corruption 2 | . 2 Feedback Blocked . | . . Robot Schematics Acquired . | . . Robots Built . | . . Authchips . | . . Time . | . . Total Robot Build Rating . | . . Part Schematics Acquired . | . . Parts Built . | . . Authchips . | . . Time . | . . Total Part Build Rating . | . . Parts Repaired . | . . Time . | . . Parts Recycled . | . . Recycled Matter . | . . Retrieved Matter 121 | . 121 Retrieved Components . | . . Parts Scanalyzed . | . . Part Schematics Acquired . | . . Parts Damaged . | . . Bothacking | -11 -10 ------------ Run | Yrd Mat Used RIF Installer . | . . Robots Hacked . | . . Non-combat . | . . Combat . | . . Robot Hacks Applied . | . . Relay Couplers Released . | . . Fabnet Peak Effective % . | . . Robots Rewired . | . . Allies Hacked . | . . Hacks Repelled . | . . Allies | -11 -10 -------- Run | Yrd Mat Total Allies 1 | . 1 Largest Group 1 | . 1 Highest-Rated Group 10 | . 10 Highest-Rated Ally 10 | . 10 Total Orders 1 | . 1 STAY 1 | . 1 Ally Attacks . | . . Total Damage . | . . Kills . | . . Allies Corrupted . | . . Allies Melted . | . . Intel | -11 -10 ------- Run | Yrd Mat Robot Analysis Total . | . . Derelict Logs Recovered . | . . Drone Launches . | . . Drone Recoveries . | . . Exploration | -11 -10 ------------- Run | Yrd Mat Turns Passed 2092 | 95 1997 Spaces Moved 892 | 61 831 Core 3 | 3 . Treads 23 | . 23 Legs . | . . Wheels 866 | 58 808 Hover . | . . Flight . | . . Fastest Speed 50 | 50 90 Average Speed 101 | 87 102 Slowest Speed 240 | 90 240 Overloaded Moves . | . . Propulsion Burnouts . | . . Robots Hopped . | . . Cave-ins Triggered . | . . Exploration Rate (%) 38 | 3 74 Regions Visited 1 Branch Regions . Pre-discovered Areas 2 | . 2 Known Exits Taken . | . . Unknown Exits Taken 1 | 1 . Scrap Searched . | . . Spaces Dug . | . . Terrain Destroyed 190 | . 190 Melee . | . . Projectile . | . . AOE 190 | . 190 Terrain Rammed . | . . Walls Destroyed . | . . Machines Disabled . | . . Actions | -11 -10 --------- Run | Yrd Mat Total 1423 | 82 1341 Wait 79 | . 79 Move 891 | 60 831 Hop . | . . Pick Up 27 | 6 21 Fast Attach 11 | 7 4 Attach 1 | . 1 Detach . | . . Swap 25 | . 25 Drop 22 | . 22 Fire 349 | 9 340 Melee 17 | . 17 Ram 1 | . 1 Kick . | . . Crush . | . . Escape Stasis . | . . Rewire . | . . Trap . | . . Miscellaneous . | . . Route ------- -11/Scrapyard -10/Materials (discovered 4 exits: [*Mat] / [*Min x2] / [*Sub]) History --------- Turn | Location | Event 32 | -11/Scrapyard | Discovered new exit (range 15) 96 | -11/Scrapyard | Entered Materials 115 | -10/Materials | Discovered new exit (range 5) 301 | -10/Materials | Build established: Mutant 510 | -10/Materials | Core integrity fell below 50% 664 | -10/Materials | Discovered new exit (range 10) 1681 | -10/Materials | Discovered new exit (range 14) 1925 | -10/Materials | Discovered new exit (range 12) 1959 | -10/Materials | Core integrity fell below 20% 2093 | -10/Materials | Destroyed by G-34 Mercenary with Small Laser Last Messages --------------- 01958_ G-34 Mercenary destroyed. 01961_ G-34 Mercenary suffers critical hit (Burn). 01961_ G-34 Mercenary destroyed. 01973_ Acquired 32 matter. 01975_ Acquired 1 matter. 01976_ Acquired 14 matter. 01990_ Dropped Sml. Laser. 01990_ Acquired Sml. Laser. 02007_ System corrupted: Matter fused (-10). 02013_ Acquired 1 matter. 02025_ Dropped Mining Laser. 02026_ Acquired Grenade Launcher. 02041_ Dropped Lgt. Assault Rifle. 02041_ Acquired Assault Rifle. 02072_ Nuclear Reactor explodes. 02077_ System corrupted: Heat flow error (+258). 02086_ U-05 Engineer lays Concrete. 02087_ The unstable cave ceiling collapses. 02088_ U-05 Engineer lays Concrete. Map ----- +----------------------------------------------------+ | ?# # #####+## % ## | | ?# "T" # + ## | | ?# # #+###### | | ?######## = #????# ## | | ????????# * #????#######? | | ????????# * #???????????? | | ????????# #?????####### | | ?######## #?????# | | ?# # ! #?##### """ | | ?# # ###= |# """ | | ?# + T%+ """ | | ## u # ############ =# | | # u # [#???##### = | | # # #???????####### | | """ !#?????????????? | | """! #?????????????? | | """[*#?????????????? | | # = %########??????? | | ######+## #??????? | | # * [ #??????? | | %% % T #??????? | | # ![ gg# #??????? | | # ! [g ### ####### #??????? | | # ###+######## ##??????? | | # ## =!! # #???????? | | # @## =!! + #???????? | | ########## =! # #???????? | | ?????????# # T#??????? | | ?????????# # ##??????? | | ?????????# | # #???????? | | ?????????# # #???????? | | ?????????# # < #???????? | | ?????????########### #???????? | | ???????????????????#####???????? | | ???????????????????????????????? | | ???????????????????????????????? | | ???????????????????????????????? | | ???????????????????????????????? | | ???????????????????????????????? | | ???????????????????????????????? | | ???????????????????????????????? | | | | | | | | | | | | | | | | | | | +----------------------------------------------------+ Best States ------------- Heat Dissipation 39 Energy Generation 14 Energy Capacity 250 Matter Stores 300 Matter Capacity 300 Sight Range 16 Terrain Scan Density 10 Weapon Shielding 33 Evasion (%) 42 Recoil Reduction 2 Item Schematics ----------------- None Robot Schematics ------------------ None Fabricated ------------ Nothing Alien Tech Used ----------------- None Achievements -------------- None Challenges ------------ None Game ------ Seed AbsorptionUtilityEdition Manual? 0 Play Time 00:23:04 Cumulative 65.1 hours Start 2024.10.11 @ 00:04:17 End 2024.10.11 @ 00:25:00 Sessions 1 Manual Loads 0 Difficulty Rogue Special Mode None Game No. 63 Rogue 63 Adventurer 0 Explorer 0 Win Type - Total 2 Types 2/0/0/0/0/0/0/0/0 Lore% 36 Gallery% 41 Achievement% 39 Wizard Run 0 Options --------- Layout 1 ASCII 0 Keyboard 1 Movement Arrows Keybinds 0 Fullscreen 2 Font 24/Smallcaps Map View 50x35 Zoom Use 0% Tactical HUD 1 Map Filters NONE Filters NONE Steam 1 RUN: e9bc25ab-3c4f-46c0-a016-dc080c057ea5